[Event "SVK Extraliga 2019-20"]
[Site "Slovakia"]
[Date "2020.02.29"]
[Round "7.5"]
[White "Dovzik, Juri"]
[Black "Vojtek, Vladimir"]
[Result "1-0"]
[ECO "A22"]
[WhiteElo "2274"]
[BlackElo "2252"]
[Annotator "ChessBase"]
[PlyCount "124"]
[EventDate "2019.10.19"]
[EventType "team-tourn"]
[EventCountry "SVK"]
[SourceTitle "playchess.com"]
[Source "ChessBase"]
[SourceQuality "1"]
[WhiteTeam "Kosice"]
[BlackTeam "Dubnica"]
[TimeControl "40/5400+30:1800+30"]

1. c4 {[%emt 0:00:04]} e5 {[%emt 0:00:12]} 2. Nc3 {[%emt 0:00:35]} Nf6 {[%emt 0:00:16]} 3. e3 {[%emt 0:01:29]} d5 {[%emt 0:02:25]} 4. cxd5 {[%emt 0:03:05]} Nxd5 {[%emt 0:00:11]} 5. Nf3 {[%emt 0:02:34]} Nxc3 {[%emt 0:05:17]} 6. bxc3 {[%emt 0:00:14]} Bd6 {[%emt 0:00:55]} 7. d4 {[%emt 0:06:29]} Nd7 {[%emt 0:14:59]} 8. Be2 {[%emt 0:10:10]} O-O {[%emt 0:02:11]} 9. O-O {[%emt 0:00:13]} Re8 {[%emt 0:06:36]} 10. a4 {[%emt 0:06:02]} Qe7 {[%emt 0:07:54]} 11. a5 {[%emt 0:01:54]} Rb8 {[%emt 0:01:48]} 12. Re1 {[%emt 0:03:33]} h6 {[%emt 0:12:46]} 13. e4 {[%emt 0:22:37]} c6 {[%emt 0:13:18]} 14. Bf1 {[%emt 0:08:19]} b5 {[%emt 0:10:53]} 15. axb6 {[%emt 0:03:14]} axb6 {[%emt 0:00:06]} 16. h3 {[%emt 0:00:56]} b5 {[%emt 0:02:49]} 17. Rb1 {[%emt 0:10:36]} Rd8 {[%emt 0:05:50]} 18. Qc2 {[%emt 0:02:04]} Qf6 {[%emt 0:01:51]} 19. Be3 {[%emt 0:01:13]} Bb7 {[%emt 0:01:31]} 20. c4 bxc4 {[%emt 0:01:23]} 21. Bxc4 {[%emt 0:03:01]} Ba8 {[%emt 0:02:07]} 22. Rxb8 {[%emt 0:03:59]} Rxb8 {[%emt 0:00:41]} 23. Rb1 {[%emt 0:00:28]} Rf8 {[%emt 0:01:13]} 24. Rd1 {[%emt 0:01:53]} Bc7 {[%emt 0:02:36]} 25. Qa2 {[%emt 0:02:34]} exd4 {[%emt 0:01:21]} 26. Bxd4 {[%emt 0:00:08]} Ne5 {[%emt 0:00:45]} 27. Nxe5 {[%emt 0:01:49]} Bxe5 {[%emt 0:00:02]} 28. Bxe5 {[%emt 0:00:11]} Qxe5 {[%emt 0:00:04]} 29. Bxf7+ {[%emt 0:00:25]} Kh8 {[%emt 0:00:23]} 30. f3 {[%emt 0:02:07]} Bb7 {[%emt 0:01:24]} 31. Be6 {[%emt 0:00:48]} Ra8 {[%emt 0:01:02]} 32. Qb3 {[%emt 0:00:25]} Ba6 {[%emt 0:00:17]} 33. Bf5 {[%emt 0:01:12]} Bb5 {[%emt 0:00:26]} 34. Qf7 {[%emt 0:00:35]} Qg3 {[%emt 0:00:37]} 35. Qe7 {[%emt 0:00:46]} Qb8 {[%emt 0:00:32]} 36. e5 {[%emt 0:01:03]} Bc4 {[%emt 0:00:19]} 37. Be4 {[%emt 0:00:32]} Bg8 {[%emt 0:00:24]} 38. Rd7 {[%emt 0:00:32]} Qf8 {[%emt 0:00:31]} 39. Qxf8 {[%emt 0:00:17]} Rxf8 {[%emt 0:00:21]} 40. Bxc6 {[%emt 0:00:03]} Re8 {[%emt 0:00:34]} 41. f4 {[%emt 0:31:09]} g5 {[%emt 0:01:28]} 42. g3 {[%emt 0:00:00]} gxf4 {[%emt 0:01:56]} 43. gxf4 {[%emt 0:00:00]} Rf8 {[%emt 0:00:27]} 44. Rd4 {[%emt 0:00:00]} Rc8 {[%emt 0:00:58]} 45. Bf3 {[%emt 0:00:00]} Kg7 {[%emt 0:00:44]} 46. Bg4 {[%emt 0:00:00]} Rc3 {[%emt 0:00:22]} 47. Rd7+ {[%emt 0:00:00]} Kf8 {[%emt 0:01:45]} 48. e6 {[%emt 0:00:00]} h5 {[%emt 0:05:45]} 49. e7+ {[%emt 0:00:00]} Ke8 {[%emt 0:00:54]} 50. Bxh5+ {[%emt 0:00:00]} Bf7 {[%emt 0:00:13]} 51. Bxf7+ {[%emt 0:00:00]} Kxf7 {[%emt 0:00:01]} 52. Kg2 {[%emt 0:00:00]} Rb3 {[%emt 0:02:06]} 53. Rc7 {[%emt 0:00:00]} Ra3 {[%emt 0:01:25]} 54. h4 {[%emt 0:00:01]} Ke8 {[%emt 0:04:01]} 55. f5 {[%emt 0:01:06]} Kf7 {[%emt 0:02:07]} 56. f6 {[%emt 0:00:23]} Ra8 {[%emt 0:00:05]} 57. Rc6 {[%emt 0:00:20]} Ra2+ {[%emt 0:02:13]} 58. Kf3 {[%emt 0:00:08]} Ra3+ {[%emt 0:00:02]} 59. Ke4 {[%emt 0:00:33]} Ra4+ {[%emt 0:00:03]} 60. Ke5 {[%emt 0:01:31]} Ra5+ {[%emt 0:00:13]} 61. Kd6 {[%emt 0:01:12]} Ra8 {[%emt 0:02:34]} 62. Kd7 {[%emt 0:00:21]} Ra1 {[%emt 0:00:14]} 1-0

[Event "SVK Extraliga 2019-20"]
[Site "Slovakia"]
[Date "2020.02.29"]
[Round "7.5"]
[White "Holtman, Teodor"]
[Black "Federic, Jozef"]
[Result "1/2-1/2"]
[ECO "B45"]
[WhiteElo "2252"]
[BlackElo "2221"]
[Annotator "ChessBase"]
[PlyCount "55"]
[EventDate "2019.10.19"]
[EventType "team-tourn"]
[EventCountry "SVK"]
[SourceTitle "playchess.com"]
[Source "ChessBase"]
[SourceQuality "1"]
[WhiteTeam "Snina"]
[BlackTeam "Modra"]
[TimeControl "40/5400+30:1800+30"]

1. e4 {[%emt 0:00:00]} c5 {[%emt 0:00:00]} 2. Nc3 {[%emt 0:00:00]} e6 {[%emt 0:00:09]} 3. Nf3 {[%emt 0:00:00]} Nc6 {[%emt 0:01:17]} 4. d4 {[%emt 0:00:00]} cxd4 {[%emt 0:00:08]} 5. Nxd4 {[%emt 0:00:00]} Nf6 {[%emt 0:00:47]} 6. Nxc6 {[%emt 0:01:10]} bxc6 {[%emt 0:00:06]} 7. e5 {[%emt 0:00:04]} Nd5 {[%emt 0:00:11]} 8. Ne4 {[%emt 0:00:04]} Qc7 {[%emt 0:00:40]} 9. f4 {[%emt 0:00:04]} Qb6 {[%emt 0:00:30]} 10. a3 {[%emt 0:05:59]} f5 {[%emt 0:13:25]} 11. exf6 {[%emt 0:02:25]} Nxf6 {[%emt 0:00:32]} 12. Nxf6+ {[%emt 0:03:28]} gxf6 {[%emt 0:00:03]} 13. Qh5+ {[%emt 0:11:44]} Ke7 {[%emt 0:01:52]} 14. Be2 {[%emt 0:14:23]} Ba6 {[%emt 0:05:10]} 15. c4 {[%emt 0:03:45]} d5 {[%emt 0:07:10]} 16. Bd2 {[%emt 0:06:51]} Re8 {[%emt 0:12:44]} 17. O-O-O {[%emt 0:06:38]} Kd7 {[%emt 0:04:49]} 18. f5 {[%emt 0:07:01]} e5 {[%emt 0:14:30]} 19. Qf7+ {[%emt 0:03:37]} Re7 {[%emt 0:00:43]} 20. Qxf6 {[%emt 0:00:39]} Bg7 {[%emt 0:00:09]} 21. Qh4 {[%emt 0:00:24]} Rb8 {[%emt 0:01:31]} 22. Bb4 {[%emt 0:05:06]} Qe3+ {[%emt 0:00:21]} 23. Kb1 {[%emt 0:01:08]} Rxb4 {[%emt 0:02:50]} 24. axb4 {[%emt 0:00:02]} Qxe2 {[%emt 0:00:10]} 25. f6 {[%emt 0:03:07]} Bxf6 {[%emt 0:04:20]} 26. Qxf6 {[%emt 0:00:03]} Bxc4 {[%emt 0:00:20]} 27. Qf5+ {[%emt 0:00:51]} Kd6 {[%emt 0:01:11]} 28. Qf6+ {[%emt 0:04:49]} 1/2-1/2

[Event "SVK Extraliga 2019-20"]
[Site "Slovakia"]
[Date "2020.02.29"]
[Round "7.7"]
[White "Kostelny, Jozef"]
[Black "Bochnickova, Simona"]
[Result "1-0"]
[ECO "D36"]
[WhiteElo "2147"]
[BlackElo "1655"]
[Annotator "ChessBase"]
[PlyCount "55"]
[EventDate "2019.10.19"]
[EventType "team-tourn"]
[EventCountry "SVK"]
[SourceTitle "playchess.com"]
[Source "ChessBase"]
[SourceQuality "1"]
[WhiteTeam "Zilina"]
[BlackTeam "Bratislava"]
[TimeControl "40/5400+30:1800+30"]

1. d4 {[%emt 0:00:00]} d5 {[%emt 0:00:00]} 2. c4 {[%emt 0:00:06]} e6 {[%emt 0:00:00]} 3. cxd5 {[%emt 0:00:26]} exd5 {[%emt 0:00:00]} 4. Nc3 {[%emt 0:00:09]} Nf6 {[%emt 0:01:56]} 5. Bg5 {[%emt 0:00:24]} Be7 {[%emt 0:00:17]} 6. Qc2 {[%emt 0:00:36]} c6 {[%emt 0:00:23]} 7. e3 {[%emt 0:00:38]} O-O {[%emt 0:00:22]} 8. Bd3 {[%emt 0:00:19]} Nbd7 {[%emt 0:03:11]} 9. Nf3 {[%emt 0:00:51]} Re8 {[%emt 0:00:12]} 10. h3 {[%emt 0:00:13]} Nf8 {[%emt 0:00:49]} 11. O-O-O {[%emt 0:01:09]} g6 {[%emt 0:20:01]} 12. Kb1 {[%emt 0:09:19]} Ne6 {[%emt 0:00:37]} 13. h4 {[%emt 0:12:13]} b5 {[%emt 0:10:03]} 14. Ne5 {[%emt 0:12:24]} Qd6 {[%emt 0:03:19]} 15. Bxf6 {[%emt 0:14:53]} Bxf6 {[%emt 0:00:12]} 16. h5 {[%emt 0:00:10]} Bxe5 {[%emt 0:11:34]} 17. dxe5 {[%emt 0:00:36]} Qxe5 {[%emt 0:00:24]} 18. hxg6 {[%emt 0:03:50]} fxg6 {[%emt 0:01:06]} 19. Rxh7 {[%emt 0:02:46]} Kxh7 {[%emt 0:07:51]} 20. Bxg6+ {[%emt 0:02:35]} Kg7 {[%emt 0:03:59]} 21. Bxe8 {[%emt 0:00:55]} Ng5 {[%emt 0:02:20]} 22. Bg6 {[%emt 0:11:35]} Qf6 {[%emt 0:02:52]} 23. Bd3 {[%emt 0:00:25]} a6 {[%emt 0:00:08]} 24. f4 {[%emt 0:05:31]} Ne6 {[%emt 0:01:25]} 25. g4 {[%emt 0:01:33]} d4 {[%emt 0:05:07]} 26. Ne4 {[%emt 0:00:41]} Qe7 {[%emt 0:02:55]} 27. f5 {[%emt 0:00:39]} Ng5 {[%emt 0:01:12]} 28. f6+ {[%emt 0:01:41]} 1-0

[Event "SVK Extraliga 2019-20"]
[Site "Slovakia"]
[Date "2020.02.29"]
[Round "7.7"]
[White "Pcola st., Jaroslav"]
[Black "Sobek, Michal"]
[Result "0-1"]
[ECO "B34"]
[WhiteElo "2076"]
[BlackElo "2036"]
[Annotator "ChessBase"]
[PlyCount "106"]
[EventDate "2019.10.19"]
[EventType "team-tourn"]
[EventCountry "SVK"]
[SourceTitle "playchess.com"]
[Source "ChessBase"]
[SourceQuality "1"]
[WhiteTeam "Snina"]
[BlackTeam "Modra"]
[TimeControl "40/5400+30:1800+30"]

1. e4 {[%emt 0:00:00]} c5 {[%emt 0:00:00]} 2. Nf3 {[%emt 0:00:04]} Nc6 {[%emt 0:00:00]} 3. Nc3 {[%emt 0:01:36]} g6 {[%emt 0:00:04]} 4. d4 {[%emt 0:01:06]} cxd4 {[%emt 0:00:22]} 5. Nxd4 {[%emt 0:00:11]} Bg7 {[%emt 0:00:42]} 6. Nxc6 {[%emt 0:00:43]} bxc6 {[%emt 0:00:11]} 7. Bc4 {[%emt 0:00:27]} d6 {[%emt 0:00:47]} 8. O-O {[%emt 0:01:16]} Nf6 {[%emt 0:00:22]} 9. Bf4 {[%emt 0:09:41]} O-O {[%emt 0:03:24]} 10. Qd2 {[%emt 0:02:57]} Qb6 {[%emt 0:32:45]} 11. Bb3 {[%emt 0:02:53]} Ng4 {[%emt 0:03:36]} 12. h3 {[%emt 0:13:13]} Ne5 {[%emt 0:00:06]} 13. Rfe1 {[%emt 0:10:07]} Be6 {[%emt 0:04:15]} 14. Nd1 {[%emt 0:15:49]} Rfd8 {[%emt 0:03:58]} 15. Qe2 {[%emt 0:11:13]} Qa5 {[%emt 0:04:15]} 16. Bd2 {[%emt 0:01:33]} Qc5 {[%emt 0:05:02]} 17. Be3 {[%emt 0:03:33]} Qb4 {[%emt 0:00:48]} 18. Bd2 {[%emt 0:00:25]} Qd4 {[%emt 0:02:48]} 19. Bc3 {[%emt 0:02:37]} Qc5 {[%emt 0:00:07]} 20. Qe3 {[%emt 0:01:34]} Qb5 {[%emt 0:00:53]} 21. a4 {[%emt 0:04:36]} Qb6 {[%emt 0:01:47]} 22. Bxe6 {[%emt 0:00:35]} fxe6 {[%emt 0:00:23]} 23. b3 {[%emt 0:00:58]} Qxe3 {[%emt 0:00:51]} 24. Rxe3 {[%emt 0:00:09]} c5 {[%emt 0:00:22]} 25. f4 {[%emt 0:02:13]} Nc6 {[%emt 0:00:07]} 26. Bxg7 {[%emt 0:00:34]} Kxg7 {[%emt 0:00:06]} 27. Nc3 {[%emt 0:04:48]} Rab8 {[%emt 0:00:31]} 28. Rd1 {[%emt 0:02:26]} Nd4 {[%emt 0:03:18]} 29. Rd2 {[%emt 0:00:58]} Rf8 {[%emt 0:01:27]} 30. Rf2 {[%emt 0:00:45]} c4 {[%emt 0:03:35]} 31. Nb5 {[%emt 0:03:10]} cxb3 32. cxb3 {[%emt 0:01:08]} Nxb5 {[%emt 0:01:16]} 33. axb5 {[%emt 0:00:05]} Rxb5 {[%emt 0:00:11]} 34. Ra2 {[%emt 0:02:50]} a5 {[%emt 0:06:37]} 35. f5 {[%emt 0:00:43]} gxf5 {[%emt 0:02:50]} 36. exf5 {[%emt 0:00:01]} Rfxf5 {[%emt 0:00:11]} 37. Rxe6 {[%emt 0:00:05]} Rfe5 {[%emt 0:00:12]} 38. Rxe5 {[%emt 0:01:17]} Rxe5 {[%emt 0:00:42]} 39. Kf2 {[%emt 0:00:28]} Rb5 {[%emt 0:00:09]} 40. Ra4 {[%emt 0:00:39]} Kf6 {[%emt 0:00:44]} 41. Ke2 {[%emt 0:07:01]} e5 {[%emt 0:01:06]} 42. Ra3 {[%emt 0:05:23]} Kf5 {[%emt 0:01:24]} 43. Ke3 {[%emt 0:02:06]} d5 {[%emt 0:06:20]} 44. g3 {[%emt 0:06:40]} Rc5 {[%emt 0:01:49]} 45. Kd2 {[%emt 0:03:24]} Ke4 {[%emt 0:01:45]} 46. g4 {[%emt 0:05:46]} d4 {[%emt 0:01:16]} 47. Ra1 {[%emt 0:02:51]} Rc3 {[%emt 0:01:16]} 48. Rxa5 {[%emt 0:00:24]} Rxb3 {[%emt 0:00:08]} 49. h4 {[%emt 0:00:19]} Rb2+ {[%emt 0:00:33]} 50. Kc1 {[%emt 0:00:27]} Rg2 {[%emt 0:00:22]} 51. Ra7 {[%emt 0:00:22]} Rxg4 {[%emt 0:00:45]} 52. Rxh7 {[%emt 0:00:04]} Ke3 {[%emt 0:00:36]} 53. h5 {[%emt 0:00:52]} d3 {[%emt 0:00:09]} 0-1

[Event "SVK Extraliga 2019-20"]
[Site "Slovakia"]
[Date "2020.02.29"]
[Round "7.8"]
[White "Borhy, Marcell"]
[Black "Danada, Tomas"]
[Result "1/2-1/2"]
[ECO "E11"]
[WhiteElo "2270"]
[BlackElo "2302"]
[Annotator "ChessBase"]
[PlyCount "180"]
[EventDate "2019.10.19"]
[EventType "team-tourn"]
[EventCountry "SVK"]
[SourceTitle "playchess.com"]
[Source "ChessBase"]
[SourceQuality "1"]
[WhiteTeam "Streda"]
[BlackTeam "Prakovce"]
[TimeControl "40/5400+30:1800+30"]

1. d4 {[%emt 0:00:00]} Nf6 {[%emt 0:00:00]} 2. c4 {[%emt 0:00:00]} e6 {[%emt 0:00:00]} 3. g3 {[%emt 0:00:00]} Bb4+ {[%emt 0:00:00]} 4. Bd2 {[%emt 0:00:00]} Qe7 {[%emt 0:00:00]} 5. Nf3 {[%emt 0:01:20]} O-O {[%emt 0:02:40]} 6. Bg2 {[%emt 0:01:28]} Nc6 {[%emt 0:00:16]} 7. Nc3 {[%emt 0:02:19]} Bxc3 {[%emt 0:00:37]} 8. Bxc3 {[%emt 0:00:08]} Ne4 {[%emt 0:00:10]} 9. Rc1 {[%emt 0:00:50]} d6 {[%emt 0:01:48]} 10. d5 {[%emt 0:02:10]} Nxc3 {[%emt 0:00:29]} 11. Rxc3 {[%emt 0:00:14]} Nb8 {[%emt 0:13:48]} 12. b4 {[%emt 0:07:27]} c6 {[%emt 0:06:06]} 13. O-O {[%emt 0:05:04]} a5 {[%emt 0:02:35]} 14. Ra3 {[%emt 0:03:55]} cxd5 {[%emt 0:04:24]} 15. cxd5 {[%emt 0:00:27]} exd5 {[%emt 0:04:48]} 16. Qxd5 {[%emt 0:11:00]} Qxe2 {[%emt 0:04:49]} 17. Re3 {[%emt 0:05:48]} Qb2 {[%emt 0:04:37]} 18. Ng5 {[%emt 0:01:17]} Qf6 {[%emt 0:01:55]} 19. Ne4 {[%emt 0:07:54]} Qd8 {[%emt 0:17:23]} 20. Nxd6 {[%emt 0:03:57]} axb4 {[%emt 0:14:41]} 21. Re8 {[%emt 0:05:34]} Qxe8 {[%emt 0:00:26]} 22. Nxe8 {[%emt 0:00:06]} Rxe8 {[%emt 0:00:03]} 23. Qb5 {[%emt 0:02:47]} Nc6 {[%emt 0:00:25]} 24. Bd5 {[%emt 0:13:42]} Re5 {[%emt 0:05:25]} 25. Rd1 {[%emt 0:02:04]} g6 {[%emt 0:04:34]} 26. Qb6 {[%emt 0:02:43]} Be6 {[%emt 0:03:33]} 27. Bb3 {[%emt 0:11:06]} Bxb3 {[%emt 0:01:21]} 28. axb3 {[%emt 0:00:02]} Re7 {[%emt 0:00:07]} 29. Kg2 {[%emt 0:03:13]} Ra3 {[%emt 0:01:05]} 30. Rd6 {[%emt 0:02:24]} Kg7 {[%emt 0:01:47]} 31. Qc5 {[%emt 0:00:07]} Ra5 {[%emt 0:00:46]} 32. Qc1 {[%emt 0:02:06]} h5 {[%emt 0:01:45]} 33. h3 {[%emt 0:02:08]} Kh7 {[%emt 0:00:51]} 34. Qf4 {[%emt 0:01:17]} Rf5 {[%emt 0:00:18]} 35. Qc4 {[%emt 0:00:05]} Kg7 {[%emt 0:00:37]} 36. g4 {[%emt 0:02:46]} Rfe5 {[%emt 0:01:28]} 37. Qd3 {[%emt 0:00:29]} Kg8 {[%emt 0:01:17]} 38. Kg3 {[%emt 0:00:24]} Kg7 {[%emt 0:00:47]} 39. Qd2 {[%emt 0:00:35]} Kh7 {[%emt 0:00:13]} 40. Qf4 {[%emt 0:00:32]} Kg7 {[%emt 0:01:25]} 41. Qf6+ {[%emt 0:01:45]} Kg8 {[%emt 0:01:16]} 42. gxh5 {[%emt 0:01:07]} gxh5 {[%emt 0:04:00]} 43. Kh4 {[%emt 0:04:13]} R7e6 {[%emt 0:03:51]} 44. Rxe6 {[%emt 0:00:26]} Rxe6 {[%emt 0:00:06]} 45. Qg5+ {[%emt 0:03:09]} Rg6 {[%emt 0:00:21]} 46. Qf4 {[%emt 0:00:37]} Ne7 {[%emt 0:07:30]} 47. Qe4 {[%emt 0:04:06]} Nc6 {[%emt 0:04:01]} 48. Kxh5 {[%emt 0:01:16]} Re6 {[%emt 0:01:15]} 49. Qf4 {[%emt 0:05:49]} Rg6 {[%emt 0:01:08]} 50. Qc7 {[%emt 0:01:27]} Kg7 {[%emt 0:05:14]} 51. Kh4 {[%emt 0:02:35]} Kf6 {[%emt 0:02:33]} 52. f4 {[%emt 0:05:07]} Kg7 {[%emt 0:03:40]} 53. f5 {[%emt 0:00:44]} Rg1 {[%emt 0:00:23]} 54. Qxb7 {[%emt 0:00:56]} Ne5 {[%emt 0:00:22]} 55. Qe7 {[%emt 0:04:01]} Nf3+ {[%emt 0:01:15]} 56. Kh5 {[%emt 0:00:01]} Rg5+ {[%emt 0:01:14]} 57. Qxg5+ {[%emt 0:00:06]} Nxg5 {[%emt 0:00:02]} 58. Kxg5 {[%emt 0:00:08]} f6+ {[%emt 0:00:03]} 59. Kh5 {[%emt 0:00:28]} Kh7 {[%emt 0:00:03]} 60. Kh4 {[%emt 0:00:19]} Kg7 {[%emt 0:00:11]} 61. Kg4 {[%emt 0:00:11]} Kh6 {[%emt 0:00:31]} 62. Kh4 {[%emt 0:01:40]} Kg7 {[%emt 0:00:11]} 63. Kg3 {[%emt 0:00:07]} Kh6 {[%emt 0:01:30]} 64. Kg4 {[%emt 0:00:09]} Kg7 {[%emt 0:00:09]} 65. Kh5 {[%emt 0:01:23]} Kh7 {[%emt 0:00:04]} 66. Kh4 {[%emt 0:00:28]} Kg7 {[%emt 0:00:04]} 67. Kg3 {[%emt 0:00:18]} Kh6 {[%emt 0:00:03]} 68. h4 {[%emt 0:01:06]} Kg7 {[%emt 0:00:34]} 69. Kf4 {[%emt 0:00:10]} Kh6 {[%emt 0:00:08]} 70. Kf3 {[%emt 0:00:54]} Kh5 {[%emt 0:00:18]} 71. Kg3 {[%emt 0:00:04]} Kh6 {[%emt 0:00:02]} 72. Kg4 {[%emt 0:00:16]} Kg7 {[%emt 0:00:06]} 73. Kf4 {[%emt 0:01:18]} Kh6 {[%emt 0:00:01]} 74. Kg3 {[%emt 0:00:33]} Kh5 {[%emt 0:00:12]} 75. Kh3 {[%emt 0:00:00]} Kh6 {[%emt 0:00:04]} 76. Kg4 {[%emt 0:00:00]} Kg7 {[%emt 0:00:08]} 77. Kf3 {[%emt 0:00:00]} Kh6 {[%emt 0:00:09]} 78. Ke4 {[%emt 0:00:58]} Kh5 {[%emt 0:00:06]} 79. Kd5 {[%emt 0:00:04]} Kxh4 {[%emt 0:00:05]} 80. Kc4 {[%emt 0:00:04]} Kg5 {[%emt 0:00:07]} 81. Kxb4 {[%emt 0:00:06]} Kxf5 {[%emt 0:00:04]} 82. Kc5 {[%emt 0:00:05]} Ke4 {[%emt 0:00:54]} 83. b4 {[%emt 0:00:07]} f5 {[%emt 0:00:03]} 84. b5 {[%emt 0:00:05]} f4 {[%emt 0:00:01]} 85. b6 {[%emt 0:00:05]} f3 {[%emt 0:00:02]} 86. b7 {[%emt 0:00:06]} f2 {[%emt 0:00:03]} 87. b8=Q {[%emt 0:00:06]} f1=Q {[%emt 0:00:06]} 88. Qe8+ {[%emt 0:00:08]} Kf3 {[%emt 0:00:05]} 89. Qf7+ {[%emt 0:00:04]} Ke2 {[%emt 0:00:08]} 90. Qxf1+ {[%emt 0:00:04]} Kxf1 {[%emt 0:00:04]} 1/2-1/2

[Event "SVK Extraliga 2019-20"]
[Site "Slovakia"]
[Date "2020.02.29"]
[Round "7.8"]
[White "Petran, Peter"]
[Black "Magat, Jozef"]
[Result "1-0"]
[ECO "A00"]
[WhiteElo "2261"]
[BlackElo "2037"]
[Annotator "ChessBase"]
[PlyCount "83"]
[EventDate "2019.10.19"]
[EventType "team-tourn"]
[EventCountry "SVK"]
[SourceTitle "playchess.com"]
[Source "ChessBase"]
[SourceQuality "1"]
[WhiteTeam "Slovan"]
[BlackTeam "Dunajov"]
[TimeControl "40/5400+30:1800+30"]

1. g3 {[%emt 0:00:00]} d5 {[%emt 0:00:00]} 2. Bg2 {[%emt 0:00:00]} e5 {[%emt 0:00:16]} 3. c4 {[%emt 0:00:00]} d4 {[%emt 0:01:32]} 4. d3 {[%emt 0:00:00]} Nc6 {[%emt 0:01:24]} 5. Nf3 {[%emt 0:00:04]} f6 {[%emt 0:00:43]} 6. O-O {[%emt 0:01:21]} Be6 {[%emt 0:01:17]} 7. e3 {[%emt 0:00:14]} Qd7 {[%emt 0:01:00]} 8. exd4 {[%emt 0:00:09]} exd4 {[%emt 0:01:05]} 9. Re1 {[%emt 0:00:54]} O-O-O {[%emt 0:05:16]} 10. a3 {[%emt 0:00:23]} Bh3 {[%emt 0:10:28]} 11. Bh1 {[%emt 0:00:23]} g5 {[%emt 0:04:00]} 12. b4 {[%emt 0:00:20]} Bg4 {[%emt 0:03:11]} 13. b5 {[%emt 0:04:14]} Nb8 {[%emt 0:07:58]} 14. Nbd2 {[%emt 0:01:36]} h5 {[%emt 0:11:24]} 15. Bb2 {[%emt 0:08:48]} Bc5 {[%emt 0:12:53]} 16. Nb3 {[%emt 0:07:34]} Qf5 {[%emt 0:03:27]} 17. h3 {[%emt 0:10:42]} Bxh3 {[%emt 0:04:01]} 18. Nfxd4 {[%emt 0:00:30]} Bxd4 {[%emt 0:05:16]} 19. Nxd4 {[%emt 0:00:15]} Qd7 {[%emt 0:09:17]} 20. Qf3 {[%emt 0:00:59]} c6 {[%emt 0:02:37]} 21. bxc6 {[%emt 0:00:15]} Nxc6 {[%emt 0:00:35]} 22. Nxc6 {[%emt 0:00:43]} bxc6 {[%emt 0:03:15]} 23. Qxc6+ {[%emt 0:04:02]} Qxc6 {[%emt 0:00:34]} 24. Bxc6 {[%emt 0:00:09]} h4 {[%emt 0:01:45]} 25. d4 {[%emt 0:04:09]} Nh6 {[%emt 0:03:51]} 26. d5 {[%emt 0:01:05]} Rhf8 {[%emt 0:01:55]} 27. Re7 {[%emt 0:02:31]} Bd7 {[%emt 0:01:17]} 28. Rae1 {[%emt 0:13:56]} hxg3 {[%emt 0:01:10]} 29. fxg3 {[%emt 0:00:39]} Nf5 {[%emt 0:01:05]} 30. Rxd7 {[%emt 0:02:45]} Rxd7 {[%emt 0:00:02]} 31. Bxd7+ {[%emt 0:00:06]} Kxd7 {[%emt 0:00:17]} 32. Kf2 {[%emt 0:03:01]} g4 {[%emt 0:00:54]} 33. Rh1 {[%emt 0:04:51]} Rc8 {[%emt 0:01:02]} 34. Rh5 {[%emt 0:06:58]} Nd6 {[%emt 0:00:25]} 35. Rh7+ {[%emt 0:00:14]} Ke8 {[%emt 0:00:20]} 36. Ke2 {[%emt 0:09:08]} Rxc4 {[%emt 0:00:58]} 37. Bxf6 {[%emt 0:00:24]} Nb5 {[%emt 0:01:13]} 38. Kd3 {[%emt 0:01:01]} Ra4 {[%emt 0:00:28]} 39. Be5 {[%emt 0:00:33]} Nxa3 {[%emt 0:00:39]} 40. d6 {[%emt 0:00:22]} Ra6 {[%emt 0:00:35]} 41. Kd4 {[%emt 0:32:32]} Nb5+ {[%emt 0:11:36]} 42. Kd5 {[%emt 0:00:00]} 1-0

[Event "SVK Extraliga 2019-20"]
[Site "Slovakia"]
[Date "2020.02.29"]
[Round "7.8"]
[White "Federic, Pavol"]
[Black "Rajnak, Daniel"]
[Result "1-0"]
[ECO "C01"]
[WhiteElo "2120"]
[BlackElo "2127"]
[Annotator "ChessBase"]
[PlyCount "75"]
[EventDate "2019.10.19"]
[EventType "team-tourn"]
[EventCountry "SVK"]
[SourceTitle "playchess.com"]
[Source "ChessBase"]
[SourceQuality "1"]
[WhiteTeam "Modra"]
[BlackTeam "Snina"]
[TimeControl "40/5400+30:1800+30"]

1. e4 {[%emt 0:00:00]} e6 {[%emt 0:00:00]} 2. d4 {[%emt 0:00:00]} d5 {[%emt 0:00:00]} 3. exd5 {[%emt 0:00:00]} exd5 {[%emt 0:00:00]} 4. c4 {[%emt 0:00:26]} Nf6 {[%emt 0:01:00]} 5. Nc3 {[%emt 0:00:10]} Be7 {[%emt 0:01:57]} 6. Nf3 {[%emt 0:01:51]} O-O {[%emt 0:00:50]} 7. Qb3 {[%emt 0:07:04]} dxc4 {[%emt 0:13:21]} 8. Bxc4 {[%emt 0:00:21]} Nc6 {[%emt 0:00:13]} 9. O-O {[%emt 0:39:34]} Na5 {[%emt 0:52:42]} 10. Qa4 {[%emt 0:00:17]} Nxc4 {[%emt 0:00:11]} 11. Qxc4 {[%emt 0:00:03]} c6 {[%emt 0:00:53]} 12. Re1 {[%emt 0:02:23]} Be6 {[%emt 0:04:41]} 13. Rxe6 {[%emt 0:04:47]} fxe6 {[%emt 0:00:06]} 14. Ng5 {[%emt 0:00:07]} Qe8 {[%emt 0:03:56]} 15. Nxe6 {[%emt 0:00:31]} Qf7 {[%emt 0:00:12]} 16. Qe2 {[%emt 0:00:13]} Rfc8 {[%emt 0:03:50]} 17. Ng5 {[%emt 0:01:24]} Qg6 {[%emt 0:05:54]} 18. Qc4+ {[%emt 0:05:25]} Kf8 {[%emt 0:01:07]} 19. Ne6+ {[%emt 0:00:21]} Ke8 {[%emt 0:00:31]} 20. Bf4 {[%emt 0:00:22]} Kd7 {[%emt 0:03:15]} 21. Re1 {[%emt 0:02:32]} Nh5 {[%emt 0:02:55]} 22. Nd5 {[%emt 0:05:12]} Nxf4 {[%emt 0:01:10]} 23. Nexf4 {[%emt 0:07:22]} cxd5 {[%emt 0:00:17]} 24. Qxd5+ {[%emt 0:07:57]} Qd6 {[%emt 0:00:02]} 25. Qxb7+ {[%emt 0:00:18]} Kd8 {[%emt 0:02:41]} 26. g3 {[%emt 0:00:23]} Rab8 {[%emt 0:00:39]} 27. Qxa7 {[%emt 0:00:36]} Ra8 {[%emt 0:00:31]} 28. Qb7 {[%emt 0:00:33]} Rab8 {[%emt 0:00:05]} 29. Qe4 {[%emt 0:00:32]} Bf6 {[%emt 0:00:56]} 30. b3 {[%emt 0:02:54]} g5 {[%emt 0:00:31]} 31. Nd5 {[%emt 0:00:16]} Qf8 {[%emt 0:00:31]} 32. Nxf6 {[%emt 0:04:03]} Qxf6 {[%emt 0:00:27]} 33. Qe8+ {[%emt 0:00:28]} Kc7 {[%emt 0:00:01]} 34. Re7+ {[%emt 0:00:02]} Qxe7 {[%emt 0:01:01]} 35. Qxe7+ {[%emt 0:00:01]} Kc6 {[%emt 0:00:29]} 36. Qxg5 {[%emt 0:00:12]} Rd8 {[%emt 0:00:34]} 37. Qc5+ {[%emt 0:02:22]} Kb7 {[%emt 0:00:02]} 38. b4 {[%emt 0:00:21]} 1-0